fUST/lending_fUST_20251201
["ID","MTS","AMOUNT","RATE_DAILY","PERIOD"]
[395252059,1764569259589,-500.0,0.0001178,2]
[395252060,1764569259608,-500.51,0.0001178,2]
[395252061,1764569259626,-647.27,0.0001178,2]
[395252062,1764569259644,-260.71115265,0.0001178,2]
[395252063,1764569259663,-637.27,0.0001178,2]
[395252064,1764569259682,-500.0,0.0001178,2]
[395252065,1764569259701,-604.76,0.0001178,2]
[395252066,1764569259723,-500.0,0.0001178,2]
[395252067,1764569259742,-505.2,0.0001178,2]
[395252068,1764569259761,-500.0,0.0001178,2]
[395252069,1764569259780,-500.0,0.0001178,2]
[395252070,1764569259799,-658.36,0.0001178,2]
[395252071,1764569259819,-541.79,0.0001178,2]
[395252072,1764569259839,-561.19,0.0001178,2]
[395252073,1764569259861,-362.22974121,0.0001178,2]
[395252074,1764569259880,-663.86,0.0001178,2]
[395252075,1764569259901,-500.0,0.0001178,2]
[395252076,1764569259922,-655.19,0.0001178,2]
[395252077,1764569259942,-623.68,0.0001178,2]
[395252078,1764569259961,-500.0,0.0001178,2]
[395252079,1764569259979,-560.22,0.0001178,2]
[395252080,1764569259997,-500.0,0.0001178,2]
[395252081,1764569260016,-746.47,0.0001178,2]
[395252082,1764569260035,-500.0,0.0001178,2]
[395252083,1764569260060,-752.76,0.0001178,2]
[395252084,1764569260081,-789.53,0.0001178,2]
[395252085,1764569260100,-500.0,0.0001178,2]
[395252086,1764569260119,-1603.01,0.0001178,2]
[395252087,1764569260138,-500.0,0.0001178,2]
[395252088,1764569260156,-659.4,0.0001178,2]
[395252089,1764569260176,-500.0,0.0001178,2]
[395252090,1764569260195,-500.0,0.0001178,2]
[395252091,1764569260213,-665.04,0.0001178,2]
[395252092,1764569260233,-638.67594548,0.0001178,2]
[395252093,1764569260253,-500.0,0.0001178,2]
[395252094,1764569260272,-610.67,0.0001178,2]
[395252095,1764569260292,-500.0,0.0001178,2]
[395252096,1764569260313,-500.0,0.0001178,2]
[395252097,1764569260336,-500.0,0.0001178,2]
[395252098,1764569260357,-1673.55,0.0001178,2]
[395252099,1764569260379,-500.0,0.0001178,2]
[395252100,1764569260400,-672.85,0.0001178,2]
[395252101,1764569260422,-921.09,0.0001178,2]
[395252102,1764569260440,-500.0,0.0001178,2]
[395252103,1764569260459,-500.0,0.0001178,2]
[395252104,1764569260477,-500.0,0.0001178,2]
[395252105,1764569260497,-1678.44,0.0001178,2]
[395252106,1764569260515,-500.0,0.0001178,2]
[395252107,1764569260534,-500.0,0.0001178,2]
[395252108,1764569260553,-500.0,0.0001178,2]
[395252109,1764569260572,-627.74,0.0001178,2]
[395252110,1764569260591,-500.0,0.0001178,2]
[395252111,1764569260610,-500.0,0.0001178,2]
[395252112,1764569260630,-989.68,0.0001178,2]
[395252113,1764569260650,-941.42,0.0001178,2]
[395252114,1764569260669,-652.44,0.0001178,2]
[395252115,1764569260690,-500.0,0.0001178,2]
[395252116,1764569260709,-500.0,0.0001178,2]
[395252117,1764569260729,-867.68,0.0001178,2]
[395252118,1764569260747,-500.0,0.0001178,2]
[395252119,1764569260766,-500.0,0.0001178,2]
[395252120,1764569260786,-519.72,0.0001178,2]
[395252121,1764569260806,-1278.68,0.0001178,2]
[395252122,1764569260825,-933.67,0.0001178,2]
[395252123,1764569260844,-500.0,0.0001178,2]
[395252124,1764569260863,-935.95,0.0001178,2]
[395252125,1764569260885,-500.0,0.0001178,2]
[395252126,1764569260911,-1388.73,0.0001178,2]
[395252127,1764569260938,-710.37,0.0001178,2]
[395252128,1764569260959,-559.12,0.0001178,2]
[395252129,1764569260985,-1227.7,0.0001178,2]
[395252130,1764569261010,-500.0,0.0001178,2]
[395252131,1764569261036,-609.69,0.0001178,2]
[395252132,1764569261063,-756.47,0.0001178,2]
[395252133,1764569261091,-1975.34,0.0001178,2]
[395252134,1764569261116,-604.91,0.0001178,2]
[395252135,1764569261141,-2489.82,0.0001178,2]
[395252136,1764569261165,-500.0,0.0001178,2]
[395252137,1764569261189,-2939.04,0.0001178,2]
[395252138,1764569261212,-720.25,0.0001178,2]
[395252139,1764569261238,-500.0,0.0001178,2]
[395252140,1764569261263,-565.02,0.0001178,2]
[395252141,1764569261288,-618.81852823,0.0001178,2]
[395252142,1764569261314,-685.1,0.0001178,2]
[395252143,1764569261340,-500.0,0.0001178,2]
[395252144,1764569261366,-2913.77,0.0001178,2]
[395252145,1764569261392,-500.0,0.0001178,2]
[395252146,1764569261418,-1910.87,0.0001178,2]
[395252147,1764569261440,-890.97,0.0001178,2]
[395252148,1764569261464,-571.21,0.0001178,2]
[395252149,1764569261491,-500.0,0.0001178,2]
[395252150,1764569261516,-1860.47,0.0001178,2]
[395252151,1764569261539,-5890.09,0.0001178,2]
[395252152,1764569261563,-631.47,0.0001178,2]
[395252153,1764569261584,-500.0,0.0001178,2]
[395252154,1764569261606,-500.0,0.0001178,2]
[395252155,1764569261630,-725.27,0.0001178,2]
[395252156,1764569261653,-1278.42,0.0001178,2]
[395252157,1764569261676,-500.0,0.0001178,2]
[395252158,1764569261700,-876.43,0.0001178,2]
[395252159,1764569261723,-1583.05,0.0001178,2]
[395252160,1764569261746,-500.0,0.0001178,2]
[395252161,1764569261767,-1257.3,0.0001178,2]
[395252162,1764569261789,-1455.08,0.0001178,2]
[395252163,1764569261811,-500.0,0.0001178,2]
[395252164,1764569261832,-1594.16,0.0001178,2]
[395252165,1764569261854,-2393.78,0.0001178,2]
[395252166,1764569261875,-856.49,0.0001178,2]
[395252167,1764569261897,-1454.9726201,0.0001178,2]
[395252190,1764569432031,-239.0,0.00010889,2]
[395252192,1764569432040,-83.0,0.00010889,2]
[395252194,1764569432052,-270.71323156,0.00010889,2]
[395252196,1764569432062,-168.44957638,0.00010923,2]
[395252198,1764569432071,-257.0,0.00010957,2]
[395252200,1764569432082,-300.0,0.00010957,2]
[395252202,1764569432092,-157.0,0.00010957,2]
[395252204,1764569432101,-1200.0,0.00010957,2]
[395252206,1764569432111,-500.0,0.00010958,2]
[395252208,1764569432120,-500.0,0.00010958,2]
[395252210,1764569432129,-500.0,0.00010958,2]
[395252213,1764569432138,-2074.85,0.00010958,2]
[395252216,1764569432147,-432.16818445,0.00010958,2]
[395252218,1764569432157,-1307.65,0.00010958,2]
[395252219,1764569432166,-500.0,0.00010958,2]
[395252220,1764569432175,-500.0,0.00010958,2]
[395252222,1764569432184,-730.36,0.00010958,2]
[395252223,1764569432194,-500.0,0.00010958,2]
[395252224,1764569432203,-500.0,0.00010958,2]
[395252225,1764569432211,-500.0,0.00010958,2]
[395252226,1764569432220,-604.39,0.00010958,2]
[395252227,1764569432230,-500.0,0.00010958,2]
[395252228,1764569432239,-500.0,0.00010958,2]
[395252229,1764569432248,-500.0,0.00010958,2]
[395252230,1764569432257,-500.0,0.00010958,2]
[395252231,1764569432266,-279.66292115,0.00010958,2]
[395252232,1764569432275,-1311.54,0.00010958,2]
[395252233,1764569432284,-500.0,0.00010958,2]
[395252234,1764569432298,-1872.35,0.00010958,2]
[395252235,1764569432308,-1212.57,0.00010958,2]
[395252236,1764569432316,-500.0,0.00010958,2]
[395252237,1764569432325,-1592.39,0.00010958,2]
[395252238,1764569432338,-1319.21,0.00010958,2]
[395252239,1764569432347,-500.72428405,0.00010958,2]
[395252240,1764569432356,-500.0,0.00010958,2]
[395252241,1764569432365,-2599.04,0.00010958,2]
[395252242,1764569432376,-3435.88,0.00010958,2]
[395252243,1764569432385,-500.0,0.00010958,2]
[395252244,1764569432394,-1907.72,0.00010958,2]
[395252245,1764569432404,-713.74,0.00010958,2]
[395252246,1764569432413,-2695.56,0.00010958,2]
[395252247,1764569432422,-500.0,0.00010958,2]
[395252248,1764569432431,-500.0,0.00010958,2]
[395252249,1764569432440,-500.0,0.00010958,2]
[395252250,1764569432449,-618.95,0.00010958,2]
[395252251,1764569432459,-500.0,0.00010958,2]
[395252252,1764569432467,-500.0,0.00010958,2]
[395252253,1764569432476,-500.0,0.00010958,2]
[395252254,1764569432486,-2112.53,0.00010958,2]
[395252255,1764569432495,-500.0,0.00010958,2]
[395252256,1764569432504,-500.0,0.00010958,2]
[395252257,1764569432513,-500.0,0.00010958,2]
[395252258,1764569432521,-728.24,0.00010958,2]
[395252259,1764569432530,-502.56476209,0.00010958,2]
[395252260,1764569432539,-1994.81,0.00010958,2]
[395252261,1764569432548,-500.0,0.00010958,2]
[395252262,1764569432558,-5013.13777264,0.00010958,2]
[395252263,1764569433570,-547.26222736,0.00010958,2]
[395252264,1764569433579,-500.0,0.00010958,2]
[395252265,1764569433589,-500.0,0.00010958,2]
[395252266,1764569433598,-2106.65,0.00010958,2]
[395252267,1764569433607,-500.0,0.00010958,2]
[395252268,1764569433616,-500.0,0.00010958,2]
[395252269,1764569433625,-2855.0,0.00010958,2]
[395252270,1764569433634,-3524.15004064,0.00010958,2]
[395252277,1764569438180,-1423.54995936,0.00010958,2]
[395252279,1764569438189,-500.0,0.00010958,2]
[395252281,1764569438199,-500.0,0.00010958,2]
[395252283,1764569438208,-237.25050308,0.00010958,2]
[395252285,1764569438217,-511.8,0.00010958,2]
[395252287,1764569438226,-453.38751964,0.00010958,2]
[395252290,1764569438243,-141.0424637,0.00010958,2]
[395252292,1764569438252,-500.0,0.00010958,2]
[395252294,1764569438261,-500.0,0.00010958,2]
[395252296,1764569438271,-1975.3,0.00010958,2]
[395252298,1764569438280,-539.39,0.00010958,2]
[395252299,1764569438292,-500.0,0.00010958,2]
[395252301,1764569438308,-500.0,0.00010958,2]
[395252303,1764569438318,-500.0,0.00010958,2]
[395252305,1764569438327,-2674.76021099,0.00010958,2]
[395252308,1764569438341,-1012.39978901,0.00010958,2]
[395252309,1764569438350,-856.73,0.00010958,2]
[395252312,1764569438360,-500.0,0.00010958,2]
[395252314,1764569438371,-500.0,0.00010958,2]
[395252315,1764569438382,-503.97,0.00010958,2]
[395252317,1764569438391,-553.21,0.00010958,2]
[395252319,1764569438400,-49.06591959,0.00010958,2]
[395252322,1764569438412,-260.99500072,0.00010958,2]
[395252324,1764569438422,-500.0,0.00010958,2]
[395252326,1764569438431,-263.62929068,0.00010958,2]
[395252426,1764569439429,-236.37070932,0.00010958,2]
[395252427,1764569439439,-500.0,0.00010958,2]
[395252428,1764569439448,-946.41,0.00010958,2]
[395252429,1764569439457,-7532.14592968,0.00010958,2]
[395252430,1764569439468,-4646.66407032,0.00010958,2]
[395252431,1764569439477,-1195.01,0.00010958,2]
[395252432,1764569439486,-442.62731276,0.00010958,2]
[395252433,1764569439586,-488.00268724,0.00010958,2]
[395252434,1764569439595,-500.0,0.00010958,2]
[395252435,1764569439605,-519.73,0.00010958,2]
[395252436,1764569439615,-500.0,0.00010958,2]
[395252437,1764569439624,-500.0,0.00010958,2]
[395252438,1764569439634,-597.75,0.00010958,2]
[395252439,1764569439643,-539.32,0.00010958,2]
[395252440,1764569439653,-500.0,0.00010958,2]
[395252441,1764569439662,-2193.17,0.00010958,2]
[395252442,1764569439671,-500.0,0.00010958,2]
[395252443,1764569439680,-500.0,0.00010958,2]
[395252444,1764569439689,-633.62,0.00010958,2]
[395252445,1764569439699,-500.0,0.00010958,2]
[395252446,1764569439708,-4930.14,0.00010958,2]
[395252447,1764569439718,-3520.9,0.00010958,2]
[395252449,1764569439727,-657.94,0.00010958,2]
[395252451,1764569439736,-500.0,0.00010958,2]
[395252453,1764569439746,-517.34,0.00010958,2]
[395252455,1764569439755,-500.0,0.00010958,2]
[395252457,1764569439764,-500.0,0.00010958,2]
[395252459,1764569439773,-500.0,0.00010958,2]
[395252461,1764569439783,-500.0,0.00010958,2]
[395252463,1764569439792,-1262.02,0.00010958,2]
[395252465,1764569439804,-500.0,0.00010958,2]
[395252467,1764569439813,-500.14407628,0.00010958,2]
[395252469,1764569439823,-500.0,0.00010958,2]
[395252471,1764569439832,-1264.04,0.00010958,2]
[395252473,1764569439841,-500.0,0.00010958,2]
[395252475,1764569439850,-500.0,0.00010958,2]
[395252477,1764569439859,-12620.46,0.00010958,2]
[395252479,1764569439868,-778.85,0.00010958,2]
[395252481,1764569439877,-506.54817904,0.00010958,2]
[395252483,1764569439886,-604.18,0.00010958,2]
[395252485,1764569439895,-1156.05,0.00010958,2]
[395252487,1764569439904,-2457.16,0.00010958,2]
[395252489,1764569439912,-50000.0,0.00010958,2]
[395252491,1764569439921,-500.0,0.00010958,2]
[395252493,1764569439931,-500.0,0.00010959,2]
[395252495,1764569439941,-500.0,0.00010959,2]
[395252497,1764569439949,-500.0,0.00010959,2]
[395252499,1764569439958,-500.0,0.00010959,2]
[395252501,1764569439967,-500.0,0.00010959,2]
[395252503,1764569439976,-455.89224887,0.00010959,2]
[395252505,1764569439985,-500.0,0.00010959,2]
[395252507,1764569439994,-500.0,0.00010959,2]
[395252509,1764569440003,-500.0,0.00010959,2]
[395252511,1764569440012,-500.0,0.00010959,2]
[395252513,1764569440021,-500.0,0.00010959,2]
[395252515,1764569440031,-500.0,0.00010959,2]
[395252517,1764569440039,-500.0,0.00010959,2]
[395252519,1764569440048,-351.57446568,0.00010959,2]
[395252521,1764569440057,-357.64238931,0.00010959,2]
[395252523,1764569440066,-300.0,0.00011176,2]
[395252525,1764569440078,-300.0,0.00011176,2]
[395252527,1764569440087,-300.0,0.00011176,2]
[395252529,1764569440096,-300.0,0.00011176,2]
[395252531,1764569440106,-300.0,0.00011176,2]
[395252533,1764569440114,-300.0,0.00011176,2]
[395252535,1764569440123,-300.0,0.00011176,2]
[395252537,1764569440132,-300.0,0.00011176,2]
[395252539,1764569440142,-300.0,0.00011176,2]
[395252541,1764569440152,-300.0,0.00011176,2]
[395252543,1764569440161,-300.0,0.00011176,2]
[395252545,1764569440170,-300.0,0.00011176,2]
[395252547,1764569440180,-300.0,0.00011176,2]
[395252549,1764569440189,-300.0,0.00011176,2]
[395252551,1764569440199,-300.0,0.00011176,2]
[395252553,1764569440208,-600.0,0.00011176,2]
[395252555,1764569440217,-500.0,0.00011231,2]
[395252557,1764569440227,-3163.42,0.00011231,2]
[395252559,1764569440236,-500.0,0.00011231,2]
[395252561,1764569440245,-663.86,0.00011231,2]
[395252563,1764569440254,-500.0,0.00011231,2]
[395252565,1764569440263,-554.6,0.00011231,2]
[395252567,1764569440271,-500.0,0.00011231,2]
[395252569,1764569440280,-622.06,0.00011231,2]
[395252571,1764569440292,-2254.03,0.00011231,2]
[395252573,1764569440303,-1202.25,0.00011231,2]
[395252575,1764569440312,-500.0,0.00011231,2]
[395252577,1764569440321,-2074.85,0.00011232,2]
[395252602,1764569440524,-1307.65,0.00011232,2]
[395252604,1764569440534,-500.0,0.00011232,2]
[395252606,1764569440543,-730.36,0.00011232,2]
[395252608,1764569440552,-500.0,0.00011232,2]
[395252610,1764569440561,-500.0,0.00011232,2]
[395252612,1764569440571,-604.39,0.00011232,2]
[395252614,1764569440580,-500.0,0.00011232,2]
[395252616,1764569440590,-500.0,0.00011232,2]
[395252618,1764569440600,-500.0,0.00011232,2]
[395252620,1764569440609,-1311.54,0.00011232,2]
[395252622,1764569440619,-1872.35,0.00011232,2]
[395252624,1764569440628,-1212.57,0.00011232,2]
[395252626,1764569440637,-500.0,0.00011232,2]
[395252628,1764569440646,-1592.39,0.00011232,2]
[395252630,1764569440655,-1319.21,0.00011232,2]
[395252632,1764569440664,-2599.04,0.00011232,2]
[395252634,1764569440674,-3435.88,0.00011232,2]
[395252636,1764569440683,-500.0,0.00011232,2]
[395252638,1764569440692,-1907.72,0.00011232,2]
[395252640,1764569440701,-713.74,0.00011232,2]
[395252642,1764569440710,-2695.56,0.00011232,2]
[395252644,1764569440719,-500.0,0.00011232,2]
[395252646,1764569440729,-500.0,0.00011232,2]
[395252648,1764569440738,-500.0,0.00011232,2]
[395252650,1764569440747,-618.95,0.00011232,2]
[395252652,1764569440757,-500.0,0.00011232,2]
[395252654,1764569440766,-500.0,0.00011232,2]
[395252656,1764569440776,-2112.53,0.00011232,2]
[395252658,1764569440785,-500.0,0.00011232,2]
[395252660,1764569440795,-500.0,0.00011232,2]
[395252662,1764569440804,-500.0,0.00011232,2]
[395252665,1764569440814,-728.24,0.00011232,2]
[395252666,1764569440823,-1994.81,0.00011232,2]
[395252668,1764569440832,-500.0,0.00011232,2]
[395252670,1764569440841,-5560.4,0.00011232,2]
[395252672,1764569440851,-500.0,0.00011232,2]
[395252675,1764569440860,-500.0,0.00011232,2]
[395252676,1764569440870,-2106.65,0.00011232,2]
[395252678,1764569440879,-500.0,0.00011232,2]
[395252680,1764569440889,-2855.0,0.00011232,2]
[395252682,1764569440898,-4947.7,0.00011232,2]
[395252684,1764569440907,-500.0,0.00011232,2]
[395252686,1764569440916,-500.0,0.00011232,2]
[395252688,1764569440926,-511.8,0.00011232,2]
[395252690,1764569440935,-500.0,0.00011232,2]
[395252692,1764569440944,-500.0,0.00011232,2]
[395252694,1764569440953,-1975.3,0.00011232,2]
[395252696,1764569440962,-539.39,0.00011232,2]
[395252698,1764569440971,-500.0,0.00011232,2]
[395252700,1764569440981,-500.0,0.00011232,2]
[395252702,1764569440990,-500.0,0.00011232,2]
[395252704,1764569440999,-3687.16,0.00011232,2]
[395252706,1764569441008,-500.0,0.00011232,2]
[395252708,1764569441018,-856.73,0.00011232,2]
[395252710,1764569441027,-500.0,0.00011232,2]
[395252712,1764569441036,-503.97,0.00011232,2]
[395252714,1764569441045,-553.21,0.00011232,2]
[395252716,1764569441054,-500.0,0.00011232,2]
[395252718,1764569441064,-500.0,0.00011232,2]
[395252721,1764569441073,-500.0,0.00011232,2]
[395252723,1764569441083,-946.41,0.00011232,2]
[395252724,1764569441092,-12178.81,0.00011232,2]
[395252727,1764569441102,-1195.01,0.00011232,2]
[395252728,1764569441111,-930.63,0.00011232,2]
[395252731,1764569441120,-519.73,0.00011232,2]
[395252732,1764569441129,-500.0,0.00011232,2]
[395252735,1764569441139,-500.0,0.00011232,2]
[395252736,1764569441151,-597.75,0.00011232,2]
[395252738,1764569441162,-539.32,0.00011232,2]
[395252740,1764569441171,-164.36,0.00011232,2]
[395252743,1764569441181,-2193.17,0.00011232,2]
[395252745,1764569441192,-500.0,0.00011232,2]
[395252746,1764569441202,-500.0,0.00011232,2]
[395252748,1764569441212,-633.62,0.00011232,2]
[395252751,1764569441224,-500.0,0.00011232,2]
[395252753,1764569441233,-3051.5054504,0.00011232,2]
[395252755,1764569441248,-263.53913976,0.00011232,2]
[395252757,1764569441259,-656.983583,0.00011232,2]
[395252760,1764569441270,-507.091205,0.00011232,2]
[395252994,1764569450346,-451.02062184,0.00011232,2]
[395252995,1764569450356,-3520.9,0.00011232,2]
[395252996,1764569450365,-657.94,0.00011232,2]
[395252997,1764569450376,-500.0,0.00011232,2]
[395252998,1764569450386,-517.34,0.00011232,2]
[395252999,1764569450395,-500.0,0.00011232,2]
[395253000,1764569450405,-500.0,0.00011232,2]
[395253001,1764569450415,-500.0,0.00011232,2]
[395253002,1764569450426,-1262.02,0.00011232,2]
[395253003,1764569450438,-500.0,0.00011232,2]
[395253004,1764569450448,-500.0,0.00011232,2]
[395253005,1764569450458,-1264.04,0.00011232,2]
[395253006,1764569450469,-500.0,0.00011232,2]
[395253007,1764569450479,-500.0,0.00011232,2]
[395253008,1764569450488,-12620.46,0.00011232,2]
[395253009,1764569450499,-778.85,0.00011232,2]
[395253010,1764569450510,-604.18,0.00011232,2]
[395253011,1764569450519,-1156.05,0.00011232,2]
[395253012,1764569450528,-2457.16,0.00011232,2]
[395253013,1764569450539,-500.0,0.00011232,2]
[395253014,1764569450549,-500.0,0.00011505,2]
[395253015,1764569450559,-3163.42,0.00011505,2]
[395253016,1764569450568,-500.0,0.00011505,2]
[395253017,1764569450578,-663.86,0.00011505,2]
[395253018,1764569450588,-500.0,0.00011505,2]
[395253019,1764569450599,-554.6,0.00011505,2]
[395253020,1764569450609,-500.0,0.00011505,2]
[395253021,1764569450618,-622.06,0.00011505,2]
[395253022,1764569450627,-2254.03,0.00011505,2]
[395253023,1764569450637,-1202.25,0.00011505,2]
[395253024,1764569450646,-500.0,0.00011505,2]
[395253025,1764569450655,-2074.85,0.00011506,2]
[395253026,1764569450665,-1307.65,0.00011506,2]
[395253027,1764569450676,-500.0,0.00011506,2]
[395253028,1764569450686,-730.36,0.00011506,2]
[395253029,1764569450695,-500.0,0.00011506,2]
[395253030,1764569450705,-500.0,0.00011506,2]
[395253031,1764569450714,-604.39,0.00011506,2]
[395253032,1764569450724,-358.31581504,0.00011506,2]
[395253033,1764569450734,-500.0,0.00011506,2]
[395253034,1764569450743,-500.0,0.00011506,2]
[395253035,1764569450753,-1311.54,0.00011506,2]
[395253036,1764569450762,-1212.57,0.00011506,2]
[395253037,1764569450771,-500.0,0.00011506,2]
[395253038,1764569450781,-1592.39,0.00011506,2]
[395253039,1764569450934,-1319.21,0.00011506,2]
[395253040,1764569450962,-1872.35,0.00011506,2]
[395253041,1764569450972,-2599.04,0.00011506,2]
[395253042,1764569450981,-3435.88,0.00011506,2]
[395253043,1764569450991,-594.11502781,0.00011506,2]
[395253044,1764569451000,-1907.72,0.00011506,2]
[395253045,1764569451010,-713.74,0.00011506,2]
[395253046,1764569451019,-2695.56,0.00011506,2]
[395253047,1764569451031,-500.0,0.00011506,2]
[395253048,1764569451041,-500.0,0.00011506,2]
[395253049,1764569451050,-500.0,0.00011506,2]
[395253050,1764569451059,-618.95,0.00011506,2]
[395253051,1764569451068,-500.0,0.00011506,2]
[395253052,1764569451079,-500.0,0.00011506,2]
[395253053,1764569451089,-2112.53,0.00011506,2]
[395253054,1764569451099,-500.0,0.00011506,2]
[395253055,1764569451109,-500.0,0.00011506,2]
[395253056,1764569451119,-500.0,0.00011506,2]
[395253057,1764569451128,-728.24,0.00011506,2]
[395253058,1764569451138,-1994.81,0.00011506,2]
[395253059,1764569451148,-500.0,0.00011506,2]
[395253060,1764569451158,-5560.4,0.00011506,2]
[395253061,1764569451168,-405.04443823,0.00011506,2]
[395253062,1764569451178,-500.0,0.00011506,2]
[395253063,1764569451188,-2106.65,0.00011506,2]
[395253064,1764569451198,-500.0,0.00011506,2]
[395253065,1764569451208,-2855.0,0.00011506,2]
[395253066,1764569451218,-4592.23236508,0.00011506,2]
[395253067,1764569452535,-500.0,0.00010958,2]
[395253068,1764569452544,-291.87,0.00011232,2]
[395253069,1764569452554,-355.46763492,0.00011506,2]
[395253070,1764569452563,-500.0,0.00011506,2]
[395253071,1764569452572,-500.0,0.00011506,2]
[395253072,1764569452582,-511.8,0.00011506,2]
[395253073,1764569452591,-500.0,0.00011506,2]
[395253074,1764569452601,-500.0,0.00011506,2]
[395253075,1764569452610,-1975.3,0.00011506,2]
[395253076,1764569452619,-539.39,0.00011506,2]
[395253077,1764569452629,-500.0,0.00011506,2]
[395253078,1764569452639,-500.0,0.00011506,2]
[395253079,1764569452648,-500.0,0.00011506,2]
[395253080,1764569452658,-3687.16,0.00011506,2]
[395253081,1764569452668,-500.0,0.00011506,2]
[395253082,1764569452678,-856.73,0.00011506,2]
[395253083,1764569452688,-500.0,0.00011506,2]
[395253084,1764569452706,-503.97,0.00011506,2]
[395253085,1764569452716,-553.21,0.00011506,2]
[395253086,1764569452726,-230.84829825,0.00011506,2]
[395253087,1764569452735,-500.0,0.00011506,2]
[395253088,1764569452744,-500.0,0.00011506,2]
[395253089,1764569452753,-259.40621483,0.00011506,2]
[395253090,1764569452766,-687.00378517,0.00011506,2]
[395253091,1764569452775,-12178.81,0.00011506,2]
[395253092,1764569452784,-413.54404368,0.00011506,2]
[395253093,1764569452795,-781.46595632,0.00011506,2]
[395253094,1764569452805,-930.63,0.00011506,2]
[395253095,1764569452815,-519.73,0.00011506,2]
[395253096,1764569452824,-365.28252919,0.00011506,2]
[395253097,1764569452835,-134.71747081,0.00011506,2]
[395253098,1764569452844,-319.86252919,0.00011506,2]
[395253099,1764569454123,-502.9862973,0.00010958,2]
[395253100,1764569454133,-551.66,0.00010958,2]
[395253101,1764569454142,-500.0,0.00010958,2]
[395253102,1764569454151,-500.0,0.00011231,2]
[395253103,1764569454160,-551.66,0.00011232,2]
[395253104,1764569454169,-500.0,0.00011232,2]
[395253105,1764569454179,-500.0,0.00011505,2]
[395253106,1764569454188,-180.13747081,0.00011506,2]
[395253107,1764569454198,-597.75,0.00011506,2]
[395253108,1764569454207,-539.32,0.00011506,2]
[395253109,1764569454216,-2193.17,0.00011506,2]
[395253110,1764569454225,-500.0,0.00011506,2]
[395253111,1764569454235,-158.06633981,0.00011506,2]
[395253112,1764569454244,-633.62,0.00011506,2]
[395253113,1764569454253,-500.0,0.00011506,2]
[395253114,1764569454262,-4930.14,0.00011506,2]
[395253115,1764569454272,-3520.9,0.00011506,2]
[395253116,1764569454281,-657.94,0.00011506,2]
[395253117,1764569454291,-500.0,0.00011506,2]
[395253118,1764569454305,-517.34,0.00011506,2]
[395253119,1764569454315,-500.0,0.00011506,2]
[395253120,1764569454324,-500.0,0.00011506,2]
[395253121,1764569454334,-500.0,0.00011506,2]
[395253122,1764569454343,-1262.02,0.00011506,2]
[395253123,1764569454354,-500.0,0.00011506,2]
[395253124,1764569454364,-500.0,0.00011506,2]
[395253125,1764569454375,-1264.04,0.00011506,2]
[395253126,1764569454385,-500.0,0.00011506,2]
[395253127,1764569454394,-500.0,0.00011506,2]
[395253128,1764569454403,-12620.46,0.00011506,2]